bitfinex-derivatives/quotes_BTCF0:USTF0_20250919
["timestamp","ask_amount","ask_price","bid_price","bid_amount"]
[1758248639659,0.79877,117140.0,117130.0,1.50004635]
[1758248640066,0.79877,117140.0,117130.0,1.60749521]
[1758248641867,0.81196,117140.0,117130.0,1.37090886]
[1758248642167,1.28460635,117140.0,117130.0,1.42355521]
[1758248642361,1.06196,117140.0,117130.0,1.42355521]
[1758248642562,1.28460635,117140.0,117130.0,1.42355521]
[1758248642761,1.06196,117140.0,117130.0,1.42355521]
[1758248642961,1.28460635,117140.0,117130.0,1.42355521]
[1758248643771,1.28460635,117140.0,117130.0,1.31610635]
[1758248645269,1.28560635,117140.0,117130.0,1.31610635]
[1758248645772,1.06296,117140.0,117130.0,1.31610635]
[1758248646173,0.81296,117140.0,117130.0,1.31610635]
[1758248648880,1.03560635,117140.0,117130.0,1.31610635]
[1758248649575,1.28560635,117140.0,117130.0,1.31610635]
[1758248650083,1.06296,117140.0,117130.0,1.31610635]
[1758248650380,1.28560635,117140.0,117130.0,1.31610635]
[1758248652582,1.28560635,117140.0,117130.0,1.31510635]
[1758248652974,1.06296,117140.0,117130.0,1.31510635]
[1758248653281,1.28560635,117140.0,117130.0,1.31510635]
[1758248655378,1.28560635,117140.0,117130.0,1.09246]
[1758248657385,1.28560635,117140.0,117130.0,1.0701]
[1758248661079,1.28560635,117140.0,117130.0,0.73122]
[1758248661691,1.28756635,117140.0,117130.0,0.73122]
[1758248663091,1.28756635,117140.0,117130.0,0.95386635]
[1758248664093,1.03756635,117140.0,117130.0,0.7093]
[1758248671897,0.02397,117140.0,117130.0,0.74453]
[1758248672097,1.03688635,117140.0,117130.0,0.95430635]
[1758248674005,1.03688635,117140.0,117130.0,0.73166]
[1758248674206,1.03688635,117140.0,117130.0,0.95430635]
[1758248675105,0.25996635,117140.0,117130.0,0.95430635]
[1758248675305,1.03672635,117140.0,117130.0,0.95430635]
[1758248678710,0.03732,117140.0,117130.0,0.95430635]
[1758248678909,1.03688635,117140.0,117130.0,0.95430635]
[1758248682605,0.81424,117140.0,117130.0,0.95430635]
[1758248682811,1.03688635,117140.0,117130.0,0.95430635]
[1758248683011,2.83528635,117140.0,117130.0,0.95430635]
[1758248684714,2.05836635,117140.0,117130.0,0.95430635]
[1758248684905,2.61224,117140.0,117130.0,0.95430635]
[1758248685105,2.83488635,117140.0,117130.0,0.95430635]
[1758248685505,2.61224,117140.0,117130.0,0.95430635]
[1758248685716,2.83488635,117140.0,117130.0,0.95430635]
[1758248686906,2.61224,117140.0,117130.0,0.95430635]
[1758248688614,1.83572,117140.0,117130.0,0.95430635]
[1758248688810,2.83516635,117140.0,117130.0,0.93194635]
[1758248689712,2.83516635,117140.0,117130.0,0.57114635]
[1758248690518,2.83516635,117140.0,117130.0,0.3485]
[1758248690722,2.83516635,117140.0,117130.0,0.57114635]
[1758248691213,2.83516635,117140.0,117130.0,0.3485]
[1758248697917,3.28068104,117140.0,117130.0,0.3485]
[1758248698123,3.99579138,117140.0,117130.0,0.3485]
[1758248698324,4.24579138,117140.0,117130.0,0.0085]
[1758248700423,3.46899138,117140.0,117130.0,0.0085]
[1758248700625,3.55211086,117140.0,117130.0,0.0085]
[1758248701124,3.91291086,117140.0,117130.0,0.0085]
[1758248703128,3.91259086,117140.0,117130.0,0.0085]
[1758248703328,3.91255086,117140.0,117130.0,0.0085]
[1758248704328,3.13491086,117140.0,117130.0,0.0085]
[1758248704531,4.24667138,117140.0,117130.0,0.0085]
[1758248704826,4.24711138,117140.0,117130.0,0.0085]
[1758248705325,3.46899138,117140.0,117130.0,0.0085]
[1758248705629,3.30251086,117140.0,117130.0,1.00462052]
[1758248705925,3.30251086,117140.0,117130.0,0.39054]
[1758248706815,3.30251086,117140.0,117130.0,0.72462052]
[1758248707015,3.30243086,117140.0,117130.0,0.72462052]
[1758248708731,3.30243086,117140.0,117130.0,0.39054]
[1758248708932,3.30243086,117140.0,117130.0,0.72462052]
[1758248709427,3.30243086,117140.0,117130.0,1.05839052]
[1758248709428,2.96819034,117140.0,117130.0,1.05839052]
[1758248709624,2.62067982,117140.0,117130.0,1.05839052]
[1758248709816,1.84259982,117140.0,117130.0,1.97247104]
[1758248710124,2.62067982,117140.0,117130.0,1.92247104]
[1758248712229,2.62047982,117140.0,117130.0,1.92247104]
[1758248713131,2.59750982,117140.0,117130.0,1.92247104]
[1758248713833,2.59750982,117140.0,117130.0,1.69247104]
[1758248714033,2.59750982,117140.0,117130.0,1.70247104]
[1758248714434,2.59750982,117140.0,117130.0,0.97431]
[1758248714733,2.59750982,117140.0,117130.0,1.95247104]
[1758248715433,2.59750982,117140.0,117130.0,3.45247104]
[1758248716529,2.59750982,117140.0,117130.0,3.14247104]
[1758248716734,2.59750982,117140.0,117130.0,3.43247104]
[1758248718135,2.59750982,117140.0,117130.0,2.76431]
[1758248718340,2.59750982,117140.0,117130.0,2.52431]
[1758248718526,2.93159034,117140.0,117130.0,2.52431]
[1758248718730,2.93159034,117140.0,117130.0,1.35839052]
[1758248719235,2.93159034,117140.0,117130.0,1.02431]
[1758248719434,2.93159034,117140.0,117130.0,1.35839052]
[1758248722144,2.59750982,117140.0,117130.0,1.02431]
[1758248722345,2.93159034,117140.0,117130.0,1.35839052]
[1758248722745,2.59750982,117140.0,117130.0,1.35839052]
[1758248722944,2.93159034,117140.0,117130.0,1.35839052]
[1758248724653,2.59750982,117140.0,117130.0,1.35839052]
[1758248724837,2.93159034,117140.0,117130.0,1.35839052]
[1758248725037,2.95403034,117140.0,117130.0,1.71919052]
[1758248726343,3.30086086,117140.0,117130.0,1.66919052]
[1758248726541,3.30086086,117140.0,117130.0,1.07134]
[1758248726735,3.30086086,117140.0,117130.0,1.0501]
[1758248726932,3.55086086,117140.0,117130.0,1.0501]
[1758248727640,3.55086086,117140.0,117130.0,1.38418052]
[1758248728440,3.55086086,117140.0,117130.0,1.0501]
[1758248728743,3.55086086,117140.0,117130.0,0.3285]
[1758248731945,2.88269982,117140.0,117130.0,0.3285]
[1758248732145,3.55086086,117140.0,117130.0,0.3285]
[1758248733246,3.55086086,117140.0,117130.0,0.0085]
[1758248735345,3.55086086,117140.0,117130.0,0.00952924]
[1758248738353,2.77298086,117140.0,117130.0,0.00952924]
[1758248738545,3.55642086,117140.0,117130.0,0.00952924]
[1758248739352,3.30642086,117140.0,117130.0,0.00952924]
[1758248740748,3.66722086,117140.0,117130.0,0.00952924]
[1758248742054,3.66678086,117140.0,117130.0,0.00952924]
[1758248743852,2.99861982,117140.0,117130.0,0.00952924]
[1758248744045,3.66678086,117140.0,117130.0,0.00952924]
[1758248745256,2.99861982,117140.0,117130.0,0.00952924]
[1758248745454,3.66678086,117140.0,117130.0,0.00952924]
[1758248745755,3.66630086,117140.0,117130.0,0.00952924]
[1758248749855,3.81920086,117140.0,117130.0,0.00952924]
[1758248750348,3.03668086,117140.0,117130.0,0.00952924]
[1758248750555,3.81868086,117140.0,117130.0,0.00952924]
[1758248751146,3.03668086,117140.0,117130.0,0.00952924]
[1758248751351,3.81868086,117140.0,117130.0,0.00952924]
[1758248752658,2.36851982,117140.0,117130.0,0.00952924]
[1758248752846,3.81840086,117140.0,117130.0,0.00952924]
[1758248753154,3.81844086,117140.0,117130.0,0.00952924]
[1758248757160,3.81844086,117140.0,117130.0,0.00999355]
[1758248757554,3.81828086,117140.0,117130.0,0.00999355]
[1758248757754,3.59562236,117140.0,117130.0,0.00999355]
[1758248759861,2.81402236,117140.0,117130.0,0.00999355]
[1758248760059,3.59542236,117140.0,117130.0,0.00999355]
[1758248763166,3.61914715,117140.0,117130.0,0.00999355]
[1758248765674,2.83774715,117140.0,117130.0,0.00999355]
[1758248765874,3.61866715,117140.0,117130.0,0.00999355]
[1758248766377,3.61866715,117140.0,117130.0,0.03125355]
[1758248766675,3.61866715,117140.0,117130.0,0.00999355]
[1758248767270,3.61866715,117140.0,117130.0,0.03125355]
[1758248767271,2.03144461,117140.0,117130.0,0.03125355]
[1758248767471,1.99496982,117140.0,117130.0,1.18848482]
[1758248767671,1.99496982,117140.0,117130.0,0.82768482]
[1758248767877,2.77652982,117140.0,117130.0,1.18848482]
[1758248768078,2.77652982,117140.0,117130.0,0.87848482]
[1758248768382,2.77652982,117140.0,117130.0,1.21848482]
[1758248773280,2.99928109,117140.0,117130.0,1.21848482]
[1758248773483,2.84638109,117140.0,117130.0,1.21848482]
[1758248774784,2.84638109,117140.0,117130.0,0.87848482]
[1758248774982,2.62362982,117140.0,117130.0,1.15848482]
[1758248775281,2.84638109,117140.0,117130.0,1.15848482]
[1758248786087,2.62362982,117140.0,117130.0,1.15848482]
[1758248786289,2.84638109,117140.0,117130.0,1.15848482]
[1758248787287,1.84206982,117140.0,117130.0,1.47848482]
[1758248787488,2.62210982,117140.0,117130.0,1.47848482]
[1758248787689,2.62210982,117140.0,117130.0,1.22848482]
[1758248788488,2.62210982,117140.0,117130.0,1.16848482]
[1758248788690,0.82370982,117140.0,117130.0,1.16848482]
[1758248789790,0.02344,117140.0,117130.0,1.77848482]
[1758248790092,0.78104,117140.0,117130.0,1.68123609]
[1758248790394,0.78104,117140.0,117130.0,1.45848482]
[1758248790992,0.78104,117140.0,117130.0,1.76656709]
[1758248791192,0.78104,117140.0,117130.0,1.54381582]
[1758248791490,0.78104,117140.0,117130.0,1.76656709]
[1758248793595,0.001,117140.0,117130.0,1.76656709]
[1758248793778,0.78088,117140.0,117130.0,1.76656709]
[1758248794191,0.78088,117140.0,117130.0,1.82656709]
[1758248795087,0.001,117140.0,117130.0,1.82656709]
[1758248795292,0.78072,117140.0,117130.0,1.82656709]
[1758248796893,0.78072,117140.0,117130.0,1.93392842]
[1758248798682,0.001,117140.0,117130.0,1.93392842]
[1758248798986,0.78044,117140.0,117130.0,1.93392842]
[1758248799390,0.78044,117140.0,117130.0,1.68392842]
[1758248799997,0.001,117140.0,117130.0,1.68392842]
[1758248800296,0.78044,117140.0,117130.0,1.68392842]
[1758248801191,0.78044,117140.0,117130.0,1.57656709]
[1758248802694,0.001,117140.0,117130.0,1.82656709]
[1758248802892,0.0001,117150.0,117140.0,0.1210437]
[1758248803093,1.79852,117160.0,117150.0,0.0990464]
[1758248803292,2.57776,117160.0,117150.0,1.36332995]
[1758248803998,2.57776,117160.0,117150.0,1.43117479]
[1758248804898,2.57776,117160.0,117150.0,1.15984339]
[1758248805103,2.57776,117160.0,117150.0,1.49984339]
[1758248805699,2.57976,117160.0,117150.0,1.15984339]
[1758248805890,2.57976,117160.0,117150.0,1.60534593]
[1758248806090,2.57976,117160.0,117150.0,1.90534593]
[1758248807901,2.57976,117160.0,117150.0,1.94534593]
[1758248809099,2.57976,117160.0,117150.0,1.89534613]
[1758248810602,2.58176,117160.0,117150.0,1.89534613]
[1758248811102,2.58184,117160.0,117150.0,1.89534613]
[1758248815100,1.80252,117160.0,117150.0,1.89534613]
[1758248815307,2.58156,117160.0,117150.0,1.89534613]
[1758248817704,1.80252,117160.0,117150.0,1.89534613]
[1758248818004,2.58124,117160.0,117150.0,1.89534613]
[1758248819807,2.58124,117160.0,117150.0,2.11741393]
[1758248820706,0.00309999,117160.0,117150.0,2.7011991]
[1758248820905,0.33569999,117160.0,117150.0,2.7011991]
[1758248821106,0.33569999,117160.0,117150.0,2.80856043]
[1758248821107,0.3346,117160.0,117150.0,2.80856043]
[1758248821604,0.3346,117160.0,117150.0,2.80851003]
[1758248821910,0.64672,117160.0,117150.0,2.80851003]
[1758248823507,0.64672,117160.0,117150.0,2.7011991]
[1758248826511,0.64672,117160.0,117150.0,3.0619991]
[1758248828108,0.77822,117170.0,117160.0,0.1207993]
[1758248828306,0.77812,117170.0,117160.0,2.35205144]
[1758248828505,0.77812,117170.0,117160.0,3.85205144]
[1758248829211,0.0001,117180.0,117160.0,3.93736074]
[1758248829411,0.7795,117180.0,117170.0,1.06386034]
[1758248829616,0.7794,117180.0,117170.0,1.97386034]
[1758248829905,0.02242,117190.0,117180.0,0.03549]
[1758248830105,0.77936,117190.0,117180.0,1.95386034]
[1758248830308,0.77936,117190.0,117180.0,1.95535389]
[1758248830910,0.77936,117190.0,117180.0,2.04064859]
[1758248831713,0.77936,117190.0,117180.0,1.92064859]
[1758248832717,0.78236,117190.0,117180.0,1.92064859]
[1758248833315,0.78236,117190.0,117180.0,0.94778355]
[1758248833618,0.80468,117190.0,117180.0,1.61535389]
[1758248833914,1.15155517,117190.0,117180.0,0.94778355]
[1758248834115,1.40155517,117190.0,117180.0,0.93156872]
[1758248834315,1.40155517,117190.0,117180.0,1.24156872]
[1758248834919,1.38846517,117190.0,117180.0,1.24156872]
[1758248838318,1.40155517,117190.0,117180.0,0.01149355]
[1758248838621,1.73534034,117190.0,117180.0,0.00149355]
[1758248839723,1.40155517,117190.0,117180.0,0.00149355]
[1758248841534,1.40455517,117190.0,117180.0,0.00149355]
[1758248842033,0.62519517,117190.0,117180.0,0.00149355]
[1758248842335,1.40391517,117190.0,117180.0,0.02340355]
[1758248842833,1.40391517,117190.0,117180.0,0.00149355]
[1758248844032,1.73770034,117190.0,117180.0,0.00149355]
[1758248852539,1.07013,117190.0,117180.0,0.00149355]
[1758248852739,1.73770034,117190.0,117180.0,0.00149355]
[1758248856844,0.95898034,117190.0,117180.0,0.00149355]
[1758248857345,1.73650034,117190.0,117180.0,0.00149355]
[1758248857545,1.06893,117190.0,117180.0,0.02384355]
[1758248857742,1.40271517,117190.0,117180.0,0.71842872]
[1758248858047,1.40271517,117190.0,117180.0,0.38464355]
[1758248858844,0.62519517,117190.0,117180.0,0.38464355]
[1758248859235,1.40343517,117190.0,117180.0,0.71842872]
[1758248859541,1.15343517,117190.0,117180.0,0.71842872]
[1758248861142,0.36210517,117190.0,117180.0,1.02229872]
[1758248861444,0.80636,117190.0,117180.0,1.91608389]
[1758248861837,0.80636,117190.0,117180.0,1.31608389]
[1758248862148,1.14014517,117190.0,117180.0,1.81608389]
[1758248862441,1.14014517,117190.0,117180.0,1.14851355]
[1758248862640,1.14014517,117190.0,117180.0,1.31608389]
[1758248862841,1.14014517,117190.0,117180.0,1.88608389]
[1758248863341,1.13714517,117190.0,117180.0,1.88608389]
[1758248865647,1.13814517,117190.0,117180.0,1.88608389]
[1758248867048,1.13814517,117190.0,117180.0,1.60608389]
[1758248867247,1.13514517,117190.0,117180.0,1.27229872]
[1758248867546,1.13614517,117190.0,117180.0,1.27229872]
[1758248867741,1.13614517,117190.0,117180.0,0.64851355]
[1758248868149,1.13614517,117190.0,117180.0,1.27229872]
[1758248868341,1.13614517,117190.0,117180.0,0.64851355]
[1758248868541,1.13614517,117190.0,117180.0,1.26229872]
[1758248871951,1.13614517,117190.0,117180.0,1.31229872]
[1758248873246,1.13614517,117190.0,117180.0,0.98229872]
[1758248873450,1.13614517,117190.0,117180.0,1.26229872]
[1758248874151,1.13614517,117190.0,117180.0,0.98229872]
[1758248874352,1.13614517,117190.0,117180.0,1.32229872]
[1758248877148,0.80236,117190.0,117180.0,1.32229872]
[1758248877350,1.13614517,117190.0,117180.0,1.32229872]
[1758248879253,1.13614517,117190.0,117180.0,0.98229872]
[1758248879453,1.13614517,117190.0,117180.0,1.25229872]
[1758248881756,1.02486765,117190.0,117180.0,1.1410212]
[1758248883056,0.80236,117190.0,117180.0,1.1410212]
[1758248883259,1.02486765,117190.0,117180.0,1.1410212]
[1758248886960,0.80236,117190.0,117180.0,1.1410212]
[1758248887160,1.02486765,117190.0,117180.0,1.1410212]
[1758248887763,1.02486765,117190.0,117180.0,0.64851355]
[1758248887956,1.02486765,117190.0,117180.0,1.2010212]
[1758248888261,1.02486765,117190.0,117180.0,1.1810212]
[1758248891962,1.02486765,117190.0,117180.0,0.64851355]
[1758248892165,1.02486765,117190.0,117180.0,1.2010212]
[1758248892366,0.80236,117190.0,117180.0,1.2010212]
[1758248892662,1.02486765,117190.0,117180.0,1.2010212]
[1758248896866,1.02494765,117190.0,117180.0,1.2010212]
[1758248898462,1.02494765,117190.0,117180.0,0.8710212]
[1758248898658,1.02494765,117190.0,117180.0,1.1610212]
[1758248902267,1.02494765,117190.0,117180.0,0.64851355]
[1758248902463,1.02494765,117190.0,117180.0,1.2110212]
[1758248903071,0.80244,117190.0,117180.0,1.2110212]
[1758248903270,1.02494765,117190.0,117180.0,1.2110212]
[1758248905872,0.80244,117190.0,117180.0,1.2110212]
[1758248906072,1.02494765,117190.0,117180.0,1.2110212]
[1758248910067,1.02442765,117190.0,117180.0,1.2110212]
[1758248911368,1.02442765,117190.0,117180.0,1.1710212]
[1758248912874,1.02442765,117190.0,117180.0,0.8710212]
[1758248913072,0.80192,117190.0,117180.0,1.1910212]
[1758248913276,1.02442765,117190.0,117180.0,1.1910212]
[1758248917077,1.02442765,117190.0,117180.0,0.64851355]
[1758248917378,1.02442765,117190.0,117180.0,1.1510212]
[1758248919279,1.02442765,117190.0,117180.0,0.9010212]
[1758248923377,0.80192,117190.0,117180.0,0.9010212]
[1758248923675,1.02442765,117190.0,117180.0,0.9010212]
[1758248929485,1.02434765,117190.0,117180.0,0.9010212]
[1758248930884,1.02434765,117190.0,117180.0,0.39851355]
[1758248931184,1.28708765,117190.0,117180.0,0.36229355]
[1758248931982,1.5095953,117190.0,117180.0,0.36229355]
[1758248932178,1.28708765,117190.0,117180.0,0.36229355]
[1758248933287,0.50956765,117190.0,117180.0,0.36229355]
[1758248933484,1.28708765,117190.0,117180.0,0.36229355]
[1758248939784,3.08480765,117190.0,117180.0,0.36229355]
[1758248940285,2.08478,117190.0,117180.0,0.36229355]
[1758248940485,3.08476765,117190.0,117180.0,0.38514355]
[1758248941589,3.08476765,117190.0,117180.0,0.36229355]
[1758248941790,3.19607393,117190.0,117180.0,0.36229355]
[1758248942185,3.52988786,117190.0,117180.0,0.36229355]
[1758248942784,3.52988786,117190.0,117180.0,0.38514355]
[1758248943592,2.75240786,117190.0,117180.0,0.38514355]
[1758248943793,3.19607393,117190.0,117180.0,0.38514355]
[1758248944493,3.52988786,117190.0,117180.0,0.38514355]
[1758248946089,2.75240786,117190.0,117180.0,0.38514355]
[1758248946285,3.52988786,117190.0,117180.0,0.36229355]
[1758248948393,3.52984786,117190.0,117180.0,0.36229355]
[1758248949386,3.52984786,117190.0,117180.0,0.38514355]
[1758248951591,3.19603393,117190.0,117180.0,0.38514355]
[1758248958299,3.19599393,117190.0,117180.0,0.38514355]
[1758248960499,2.41859393,117190.0,117180.0,0.38514355]
[1758248960700,3.19595393,117190.0,117180.0,0.38514355]
[1758248961097,2.41859393,117190.0,117180.0,0.38514355]
[1758248961301,3.19595393,117190.0,117180.0,0.38514355]
[1758248967209,2.41859393,117190.0,117180.0,0.38514355]
[1758248967505,3.19591393,117190.0,117180.0,0.38514355]
[1758248973214,1.39819393,117190.0,117180.0,0.38514355]
[1758248973716,1.73200786,117190.0,117180.0,0.38514355]
[1758248974111,0.95468786,117190.0,117180.0,0.36229355]
[1758248974307,1.73192786,117190.0,117180.0,0.36229355]
[1758248976813,0.95468786,117190.0,117180.0,0.38553355]
[1758248977119,1.73192786,117190.0,117180.0,0.38553355]
[1758248977316,1.39811393,117190.0,117180.0,0.38553355]
[1758248977517,0.62087393,117190.0,117180.0,0.38553355]
[1758248977820,1.39811393,117190.0,117180.0,0.38553355]
[1758248979414,1.14811393,117190.0,117180.0,0.38553355]
[1758248980013,0.81426,117190.0,117180.0,0.38553355]
[1758248980218,1.14807393,117190.0,117180.0,0.38553355]
[1758248985421,1.48188786,117190.0,117180.0,0.38553355]
[1758248986220,1.14807393,117190.0,117180.0,0.38553355]
[1758248989423,0.81426,117190.0,117180.0,0.38553355]
[1758248989621,1.14807393,117190.0,117180.0,0.38553355]
[1758248991628,1.14799393,117190.0,117180.0,0.38553355]
[1758248992018,1.14799393,117190.0,117180.0,0.71934748]
[1758248992725,1.14799393,117190.0,117180.0,0.38553355]
[1758248992925,1.14799393,117190.0,117180.0,0.71934748]
[1758248995333,1.14799393,117190.0,117180.0,0.38553355]
[1758248995533,1.14799393,117190.0,117180.0,0.71934748]
[1758248996232,1.14799393,117190.0,117180.0,0.38553355]
[1758248996437,1.48180786,117190.0,117180.0,0.38553355]
[1758248997630,0.70468786,117190.0,117180.0,0.38553355]
[1758248997933,1.48176786,117190.0,117180.0,0.38553355]
[1758248999834,1.50182552,117190.0,117180.0,0.38553355]
[1758249000221,0.83419766,117190.0,117180.0,0.38553355]
[1758249000426,1.50182552,117190.0,117180.0,0.38553355]
[1758249001736,1.05674203,117190.0,117180.0,0.38553355]
[1758249005232,1.05674203,117190.0,117180.0,0.36229355]
[1758249005432,1.05674203,117190.0,117180.0,0.00149355]
[1758249006542,1.05674203,117190.0,117180.0,0.02340355]
[1758249007031,1.05674203,117190.0,117180.0,0.00149355]
[1758249007236,0.27966203,117190.0,117180.0,0.02340355]
[1758249007432,0.83411766,117190.0,117180.0,0.02340355]
[1758249007636,0.83407766,117190.0,117180.0,0.02340355]
[1758249007840,1.05662203,117190.0,117180.0,0.02340355]
[1758249009446,0.27966203,117190.0,117180.0,0.38420355]
[1758249009646,1.05662203,117190.0,117180.0,0.38420355]
[1758249011242,0.27966203,117190.0,117180.0,0.38420355]
[1758249011436,1.05662203,117190.0,117180.0,0.38420355]
[1758249013850,0.04437766,117190.0,117180.0,1.14261229]
[1758249014043,0.04437766,117190.0,117180.0,1.67261229]
[1758249014248,0.82129766,117190.0,117180.0,1.15006792]
[1758249016153,0.04437766,117190.0,117180.0,1.15006792]
[1758249016354,0.82129766,117190.0,117180.0,1.15006792]
[1758249019456,0.82129766,117190.0,117180.0,0.62006792]
[1758249019650,0.82129766,117190.0,117180.0,0.94006792]
[1758249024158,0.04437766,117190.0,117180.0,0.94006792]
[1758249024354,0.82121766,117190.0,117180.0,0.93006792]
[1758249025859,0.82121766,117190.0,117180.0,0.62006792]
[1758249026053,0.82121766,117190.0,117180.0,0.90006792]
[1758249028458,0.82121766,117190.0,117180.0,0.62006792]
[1758249028656,1.04376203,117190.0,117180.0,0.72752355]
[1758249028851,1.04376203,117190.0,117180.0,0.62006792]
[1758249029058,1.04376203,117190.0,117180.0,0.91006792]
[1758249029256,1.04376203,117190.0,117180.0,0.39752355]
[1758249032366,1.05715203,117190.0,117180.0,0.38420355]
[1758249032663,1.30715203,117190.0,117180.0,0.00149355]
[1758249032858,1.30715203,117190.0,117180.0,0.02419355]
[1758249033965,1.30715203,117190.0,117180.0,0.38499355]
[1758249033966,1.30703203,117190.0,117180.0,0.38499355]
[1758249034466,0.53031203,117190.0,117180.0,0.38499355]
[1758249034669,1.30703203,117190.0,117180.0,0.38499355]
[1758249036072,0.53031203,117190.0,117180.0,0.38499355]
[1758249036282,1.30699203,117190.0,117180.0,0.38499355]
[1758249039287,1.05699203,117190.0,117180.0,0.38499355]
[1758249043891,0.83444766,117190.0,117180.0,0.38499355]
[1758249044087,1.05699203,117190.0,117180.0,0.38499355]
[1758249046793,0.04437766,117190.0,117180.0,0.39770355]
[1758249046993,0.04437766,117190.0,117180.0,1.18024792]
[1758249047200,1.04348203,117190.0,117180.0,1.18024792]
[1758249047793,0.82093766,117190.0,117180.0,1.18024792]
[1758249048086,1.04348203,117190.0,117180.0,1.18024792]
[1758249049582,1.04348203,117190.0,117180.0,0.67770355]
[1758249049782,1.04348203,117190.0,117180.0,0.62024792]
[1758249049984,1.04348203,117190.0,117180.0,0.39770355]
[1758249057995,0.26692203,117190.0,117180.0,0.39770355]
[1758249058192,1.04336203,117190.0,117180.0,0.39770355]
[1758249060698,0.26692203,117190.0,117180.0,0.39770355]
[1758249060894,1.04336203,117190.0,117180.0,0.39770355]
[1758249062098,0.26692203,117190.0,117180.0,0.39770355]
[1758249062398,1.04336203,117190.0,117180.0,0.39770355]
[1758249063498,0.26692203,117190.0,117180.0,0.95024792]
[1758249063694,0.82077766,117190.0,117180.0,0.95024792]
[1758249063894,1.15450913,117190.0,117180.0,1.06143502]
[1758249065999,1.15450913,117190.0,117180.0,1.39516649]
[1758249066201,0.37810913,117190.0,117180.0,1.39516649]
[1758249066398,1.15446913,117190.0,117180.0,1.39516649]
[1758249067803,1.15446913,117190.0,117180.0,1.06143502]
[1758249073309,1.15446913,117190.0,117180.0,1.39516649]
[1758249074205,0.82073766,117190.0,117180.0,1.06143502]
[1758249074402,0.82073766,117190.0,117180.0,1.06516649]
[1758249074602,0.02205766,117190.0,117180.0,1.49046099]
[1758249074904,0.79833766,117190.0,117180.0,2.15777192]
[1758249075307,0.79833766,117190.0,117180.0,2.05046099]
[1758249075805,0.79833766,117190.0,117180.0,2.15777192]
[1758249076006,0.79833766,117190.0,117180.0,1.84777192]
[1758249076205,0.79833766,117190.0,117180.0,2.12777192]
[1758249076806,0.79833766,117190.0,117180.0,1.18030898]
[1758249077106,0.79833766,117190.0,117180.0,1.84777192]
[1758249077508,1.13206913,117190.0,117180.0,1.84777192]
[1758249077702,1.13106913,117190.0,117180.0,1.84777192]
[1758249078502,1.13106913,117190.0,117180.0,1.74046099]
[1758249078901,1.13006913,117190.0,117180.0,1.74046099]
[1758249079302,0.79633766,117190.0,117180.0,1.74046099]
[1758249079502,1.13006913,117190.0,117180.0,1.74046099]
[1758249079905,0.79633766,117190.0,117180.0,1.74046099]
[1758249082813,0.79621766,117190.0,117180.0,1.74046099]
[1758249083410,0.02005766,117190.0,117180.0,1.74046099]
[1758249083612,0.78285766,117190.0,117180.0,2.07046099]
[1758249088609,0.79613766,117190.0,117180.0,2.07046099]
[1758249089117,0.79613766,117190.0,117180.0,1.74046099]
[1758249089415,0.79613766,117190.0,117180.0,2.02046099]
[1758249091118,0.79609766,117190.0,117180.0,2.02046099]
[1758249093017,0.02005766,117190.0,117180.0,2.02046099]
[1758249093222,0.79609766,117190.0,117180.0,2.02046099]
[1758249093819,0.79605766,117190.0,117180.0,1.87777192]
[1758249094012,0.02005766,117190.0,117180.0,1.87777192]
[1758249094212,0.79605766,117190.0,117180.0,1.87777192]
[1758249095121,0.79605766,117190.0,117180.0,1.77046099]
[1758249100037,0.79605766,117190.0,117180.0,2.13126099]
[1758249105225,0.79605766,117190.0,117180.0,2.23857192]
[1758249105926,0.79605766,117190.0,117180.0,1.57110898]
[1758249106127,0.79605766,117190.0,117180.0,2.23857192]
[1758249106624,1.12978913,117190.0,117180.0,1.20581448]
[1758249106928,1.12978913,117190.0,117180.0,1.43223502]
[1758249110335,1.12978913,117190.0,117180.0,1.76596649]
[1758249110629,1.12978913,117190.0,117180.0,1.43223502]
[1758249110825,1.12978913,117190.0,117180.0,1.53954595]
[1758249111130,1.12978913,117190.0,117180.0,1.87327742]
[1758249112126,1.12978913,117190.0,117180.0,1.76596649]
[1758249112426,1.12978913,117190.0,117180.0,1.43223502]
[1758249113326,0.79605766,117190.0,117180.0,1.43223502]
[1758249113532,1.12978913,117190.0,117180.0,1.43223502]
[1758249114132,1.12978913,117190.0,117180.0,1.76596649]
[1758249114532,1.12978913,117190.0,117180.0,1.09850355]
[1758249114833,1.12978913,117190.0,117180.0,1.76596649]
[1758249115033,1.12978913,117190.0,117180.0,1.43223502]
[1758249116630,0.79605766,117190.0,117180.0,1.43223502]
[1758249117033,1.12978913,117190.0,117180.0,1.09850355]
[1758249117336,1.12978913,117190.0,117180.0,1.43223502]
[1758249117538,1.12978913,117190.0,117180.0,1.76596649]
[1758249117735,1.12978913,117190.0,117180.0,1.43223502]
[1758249118827,1.12978913,117190.0,117180.0,1.76596649]
[1758249119327,1.14358913,117190.0,117180.0,1.43223502]
[1758249119531,1.14358913,117190.0,117180.0,1.41952502]
[1758249120136,1.14358913,117190.0,117180.0,1.08579355]
[1758249120442,1.39358913,117190.0,117180.0,1.41952502]
[1758249120942,1.39358913,117190.0,117180.0,1.08579355]
[1758249121241,1.39358913,117190.0,117180.0,1.41952502]
[1758249121841,1.0398,117190.0,117180.0,1.41952502]
[1758249122043,1.37353147,117190.0,117180.0,1.08579355]
[1758249122544,1.37353147,117190.0,117180.0,1.19310448]
[1758249123739,1.26232746,117190.0,117180.0,1.19310448]
[1758249124337,1.26232746,117190.0,117180.0,1.08579355]
[1758249126646,0.48632746,117190.0,117180.0,1.08579355]
[1758249126838,1.26212746,117190.0,117180.0,1.08579355]
[1758249129646,0.48632746,117190.0,117180.0,1.08579355]
[1758249129844,1.26212746,117190.0,117180.0,1.08579355]
[1758249133248,1.03482746,117190.0,117180.0,0.36229355]
[1758249134844,1.03582746,117190.0,117180.0,0.36229355]
[1758249135243,1.50935492,117190.0,117180.0,0.36229355]
[1758249140156,0.73355492,117190.0,117180.0,0.36229355]
[1758249140456,1.50935492,117190.0,117180.0,0.36229355]
[1758249141256,3.30703492,117190.0,117180.0,0.36229355]
[1758249143052,2.53123492,117190.0,117180.0,0.36229355]
[1758249143355,3.30703492,117190.0,117180.0,0.36229355]
[1758249144759,2.53123492,117190.0,117180.0,0.36229355]
[1758249144960,3.30703492,117190.0,117180.0,0.36229355]
[1758249145660,3.30703492,117190.0,117180.0,0.00149355]
[1758249145854,3.30703492,117190.0,117180.0,0.36229355]
[1758249148159,2.53123492,117190.0,117180.0,0.36229355]
[1758249148358,3.30703492,117190.0,117180.0,0.36229355]
[1758249149051,2.08618,117190.0,117180.0,0.38345355]
[1758249149246,3.08450746,117190.0,117180.0,0.38345355]
[1758249149560,2.83450746,117190.0,117180.0,0.38345355]
[1758249149751,2.83450746,117190.0,117180.0,0.39673355]
[1758249151259,2.83450746,117190.0,117180.0,0.38345355]
[1758249152960,2.05870746,117190.0,117180.0,0.38345355]
[1758249153160,2.83446746,117190.0,117180.0,0.38345355]
[1758249153668,2.05870746,117190.0,117180.0,0.38345355]